Cogmind - Beta 10.1 @@@ ROGUE MODE // 2020.10.15 @ 20:35:19 Player: CrossedViper Result: Destroyed by as-72589 with Assembled Maul Performance ------------- Evolutions (0) 0 Regions Visited (4) 800 Robots Destroyed (20) 100 Value Destroyed (450) 450 Prototype IDs (23) 460 Alien Tech Used (0) 0 Bonus (300) 300 TOTAL SCORE: 2110 Bonus ------- Aligned with FarCom 300 Cogmind --------- Core Integrity 0/250 Matter 300/300 Energy 250/250 System Corruption 0% Temperature Cool (0) Movement Walking (120) Location -9/Mines Parts ------- > --- POWER (1) -------- Ion Engine > --- PROPULSION (2) --- Aluminum Leg Aluminum Leg > --- UTILITY (2) ------ Lightpack 2.0 > --- WEAPON (2) ------- Light Assault Rifle Light Assault Rifle > --- INVENTORY (24) --- Nuclear Core Nuclear Core Light Nuclear Core Reinforced Deuterium Engine Aluminum Leg Aluminum Leg Wheel Compact Wheel Small Storage Unit Large Storage Unit Large Storage Unit Trap Reconfigurator Grenade Launcher Grenade Launcher Rocket Launcher Peak State ------------ > --- POWER ------------ Ion Engine > --- PROPULSION ------- Aluminum Leg Aluminum Leg > --- UTILITY ---------- Lightpack 2.0 > --- WEAPON ----------- Light Assault Rifle Rocket Launcher > --- INVENTORY -------- Nuclear Core Nuclear Core Light Nuclear Core Reinforced Deuterium Engine Aluminum Leg Aluminum Leg Wheel Compact Wheel Small Storage Unit Large Storage Unit Large Storage Unit Trap Reconfigurator Light Assault Rifle Grenade Launcher [Rating: 29] Favorites ----------- Power Ion Engine Engine Ion Engine Propulsion Aluminum Leg Treads Light Treads Leg Aluminum Leg Utility Small Storage Unit Storage Small Storage Unit Weapon Light Assault Rifle Ballistic Gun Light Assault Rifle Launcher Rocket Launcher Build | -11 -10 -10 -10 -9 ------- Run | Scr Mat Min Exi Min Slots Evolved . | . . . . . Power . | . . . . . Propulsion . | . . . . . Utility . | . . . . . Weapon . | . . . . . Parts Attached 12 | . 4 5 1 2 Power 2 | . 1 1 . . Engine 2 | . 1 1 . . Core . | . . . . . Reactor . | . . . . . Propulsion 4 | . 2 2 . . Treads 2 | . 2 . . . Leg 2 | . . 2 . . Wheel . | . . . . . Hover . | . . . . . Flight . | . . . . . Utility 2 | . 1 . 1 . Device . | . . . . . Storage 2 | . 1 . 1 . Processor . | . . . . . Hackware . | . . . . . Protection . | . . . . . Artifact . | . . . . . Weapon 4 | . . 2 . 2 Energy Gun . | . . . . . Energy Cannon . | . . . . . Ballistic Gun 3 | . . 2 . 1 Ballistic Cannon . | . . . . . Launcher 1 | . . . . 1 Special Weapon . | . . . . . Impact Weapon . | . . . . . Slashing Weapon . | . . . . . Piercing Weapon . | . . . . . Special Melee Weapon . | . . . . . Unidentified Prototypes . | . . . . . Parts Lost 6 | . 3 3 . . Power 2 | . 2 . . . Propulsion 2 | . 1 1 . . Utility . | . . . . . Weapon 2 | . . 2 . . Highest Loss Streak 2 | . 1 2 . . Average Slot Usage (%) 91 | . 90 94 93 85 Engine 10 | . 5 9 14 14 Treads 8 | . 8 18 . . Leg 19 | . 18 8 28 28 Storage 23 | . 27 28 21 14 Ballistic Gun 27 | . 28 26 28 27 Naked Turns . | . . . . . Heaviest Build 27 | 10 26 27 27 15 Greatest Support 40 | 20 40 40 20 20 Greatest Overweight (x) 2 | . 2 1 1 . Average Overweight (x) . | . . . . . Largest Inventory Capacity 24 | . 12 12 24 24 Average Capacity 15 | . 11 12 16 24 Most Carried 15 | . 9 9 14 15 Average Carried 10 | . 7 7 11 14 Final Capacity 24 | 6 12 12 24 24 Final Carried 15 | 6 9 8 14 15 Class Distribution -------------------- 47% | Mutant 30% | Hauler-Mutant 22% | Scavenger-Mutant Dominant Class ---------------- Mutant | -10/Materials Mutant | -10/Mines Scavenger-Mutant | -10/Exiles Hauler-Mutant | -9/Mines Resources | -11 -10 -10 -10 -9 ----------- Run | Scr Mat Min Exi Min Matter Collected 569 | 200 210 75 . 84 Remotely . | . . . . . Salvage Created 474 | . 334 131 . 9 Parts 38 | . 27 7 . 4 Haulers Intercepted . | . . . . . Recyclers Shooed . | . . . . . Parts Field Recycled . | . . . . . Retrieved Matter . | . . . . . Parts Self-Destructed . | . . . . . Prevented . | . . . . . Kills | -11 -10 -10 -10 -9 ------- Run | Scr Mat Min Exi Min Combat Hostiles Destroyed 18 | . 9 5 . 4 Guns 14 | . 9 5 . . AOE 4 | . . . . 4 Classes Destroyed 3 | . 3 . . . Watcher 2 | . 2 . . . Swarmer 10 | . 3 3 . 4 Grunt 8 | . 6 2 . . Best Kill Streak 4 | . 3 2 . 4 Combat Bots Only 4 | . 3 2 . 4 Max Kills in Single Turn 2 | . 1 1 . 2 Gunslinging . | . . . . . Exploded 2 | . . . . 2 Melee . | . . . . . Uniques/NPCs Destroyed . | . . . . . Combat | -11 -10 -10 -10 -9 -------- Run | Scr Mat Min Exi Min Damage Taken 1235 | . 781 261 . 193 Core 264 | . 187 23 . 54 Absorbed by Shields . | . . . . . Core Remaining (%) 100 | 100 . . . . Volleys Fired 74 | . 47 23 . 4 Largest 2 | . 2 2 . 1 Hottest 40 | . 40 40 . 33 Shots Fired 135 | . 94 37 . 4 Gun 131 | . 94 37 . . Cannon . | . . . . . Launcher 4 | . . . . 4 Special . | . . . . . Kinetic 131 | . 94 37 . . Thermal . | . . . . . Explosive 4 | . . . . 4 Electromagnetic . | . . . . . Robot Hit Streak 8 | . 8 6 . . Robot Miss Streak 4 | . 3 2 . 4 Penetration Max . | . . . . . Secondary Targets 3 | . 3 . . . Max Gunslinging Chain 1 | . 1 . . . Shots Hit Robots 83 | . 61 22 . . Core Hits 39 | . 22 12 . 5 Critical Hits 1 | . 1 . . . Critical Kills . | . . . . . Critical Parts Destroyed 1 | . 1 . . . Melee Attacks . | . . . . . Impact . | . . . . . Slashing . | . . . . . Piercing . | . . . . . Sneak Attacks . | . . . . . Combat Hostiles . | . . . . . Follow-up Attacks . | . . . . . Damage Inflicted 1066 | . 666 188 . 212 Guns 854 | . 666 188 . . Cannons . | . . . . . Explosions 212 | . . . . 212 Melee . | . . . . . Ramming . | . . . . . Kinetic 854 | . 666 188 . . Thermal . | . . . . . Explosive 212 | . . . . 212 Electromagnetic . | . . . . . Impact . | . . . . . Slashing . | . . . . . Piercing . | . . . . . Highest Corruption . | . . . . . Average Corruption . | . . . . . Corruption Purged . | . . . . . Overload Shots . | . . . . . Overflow Damage 24 | . 12 . . 12 Projectiles . | . . . . . Explosions 24 | . 12 . . 12 Melee . | . . . . . Knockbacks . | . . . . . Impact . | . . . . . Kinetic . | . . . . . Secondary . | . . . . . Self-Inflicted Damage 87 | . 39 . . 48 Shots 4 | . 1 . . 3 Rammed 1 | . 1 . . . Targets Rammed 1 | . 1 . . . Kicked . | . . . . . Crushed . | . . . . . Highest Temperature 18 | . 15 18 . . Average Temperature 6 | . 5 9 . . Received Heat Transfer 441 | . 396 45 . . Siege Activations . | . . . . . Robots Corrupted . | . . . . . Combat Hostiles . | . . . . . Parts Fried . | . . . . . Impact Corruptions . | . . . . . Robots Melted . | . . . . . Combat Hostiles . | . . . . . Parts Melted . | . . . . . Heat Transferred . | . . . . . Parts Sabotaged . | . . . . . Parts Stolen . | . . . . . Parts Stripped . | . . . . . Power Chain Reactions . | . . . . . Missiles Intercepted . | . . . . . Alert | -11 -10 -10 -10 -9 ------- Run | Scr Mat Min Exi Min Peak Influence 343 | . 343 145 . 90 Initial 55 | . . 55 . . Average 97 | . 134 72 . 88 Maximum Alert Level 1 | . 1 . . . Low Security (%) 88 | . 66 100 . 100 Level 1 11 | . 33 . . . Level 2 . | . . . . . Level 3 . | . . . . . Level 4 . | . . . . . Level 5 . | . . . . . High Security . | . . . . . Max Security . | . . . . . Squads Dispatched 3 | . 3 . . . Investigation 3 | . 3 . . . Extermination . | . . . . . Reinforcement . | . . . . . Assault . | . . . . . Garrison . | . . . . . Intercept . | . . . . . Construction Impeded . | . . . . . Haulers Reinforced . | . . . . . Stealth | -11 -10 -10 -10 -9 --------- Run | Scr Mat Min Exi Min Distress Signals 1 | . 1 . . . Communications Jammed . | . . . . . Distress Signals . | . . . . . Times Spotted 35 | . 22 5 . 8 Peak Tracking Total 7 | . 7 3 . 4 Tactical Retreats 4 | . 2 1 . 1 Traps | -11 -10 -10 -10 -9 ------- Run | Scr Mat Min Exi Min Traps Triggered 1 | . 1 . . . Indirectly . | . . . . . Trap Hack Attempts . | . . . . . Triggered . | . . . . . Disarmed . | . . . . . Reprogrammed . | . . . . . Reused . | . . . . . Traps Extracted . | . . . . . Installed . | . . . . . Triggered . | . . . . . Machines | -11 -10 -10 -10 -9 ---------- Run | Scr Mat Min Exi Min Machines Disabled 2 | . 2 . . . Max in Single Turn 2 | . 2 . . . Machines Sabotaged . | . . . . . Garrisons Compromised . | . . . . . Overloaded Fab Kills . | . . . . . Fab Network Shutdowns . | . . . . . Hacking | -11 -10 -10 -10 -9 --------- Run | Scr Mat Min Exi Min Machines Accessed 5 | . 4 . 1 . Terminals 2 | . 2 . . . Fabricators . | . . . . . Repair Stations . | . . . . . Recycling Units 2 | . 2 . . . Scanalyzers . | . . . . . Garrison Access . | . . . . . Total Hacks 10 | . 9 . 1 . Successful 6 | . 5 . 1 . Failed 4 | . 4 . . . Catastrophic 1 | . 1 . . . Database Lockouts . | . . . . . Manual 9 | . 8 . 1 . Terminals 6 | . 6 . . . Fabricators . | . . . . . Repair Stations . | . . . . . Recycling Units 3 | . 3 . . . Scanalyzers . | . . . . . Garrison Access . | . . . . . Terminal Hacks 4 | . 3 . 1 . Branch Access Points 1 | . 1 . . . Recycling Unit Index 1 | . 1 . . . Recall Investigation 1 | . 1 . . . EX-Prototype ID Bank 1 | . . . 1 . Fabricator Hacks . | . . . . . Repair Station Hacks . | . . . . . Recycling Unit Hacks . | . . . . . Scanalyzer . | . . . . . Garrison Access Hacks . | . . . . . Unauthorized Hacks 2 | . 2 . . . Terminals . | . . . . . Fabricators . | . . . . . Repair Stations . | . . . . . Recycling Units 2 | . 2 . . . Tunnel 2 | . 2 . . . Scanalyzers . | . . . . . Garrison Access . | . . . . . Data Cores Recovered . | . . . . . Used . | . . . . . Hacking Detections 3 | . 3 . . . Full Trace Events 1 | . 1 . . . Feedback Events . | . . . . . Feedback Blocked . | . . . . . Robot Schematics Acquired . | . . . . . Robots Built . | . . . . . Matter . | . . . . . Time . | . . . . . Total Robot Build Rating . | . . . . . Part Schematics Acquired . | . . . . . Parts Built . | . . . . . Matter . | . . . . . Time . | . . . . . Total Part Build Rating . | . . . . . Parts Repaired . | . . . . . Time . | . . . . . Parts Recycled . | . . . . . Recycled Matter . | . . . . . Retrieved Matter . | . . . . . Retrieved Components . | . . . . . Parts Scanalyzed . | . . . . . Part Schematics Acquired . | . . . . . Parts Damaged . | . . . . . Bothacking | -11 -10 -10 -10 -9 ------------ Run | Scr Mat Min Exi Min Used RIF Installer . | . . . . . Robots Hacked . | . . . . . Non-combat . | . . . . . Combat . | . . . . . Robot Hacks Applied . | . . . . . Relay Couplers Released . | . . . . . Robots Rewired . | . . . . . Allies Hacked . | . . . . . Hacks Repelled . | . . . . . Allies | -11 -10 -10 -10 -9 -------- Run | Scr Mat Min Exi Min Total Allies . | . . . . . Largest Group . | . . . . . Highest-Rated Group . | . . . . . Highest-Rated Ally . | . . . . . Total Orders . | . . . . . Ally Attacks . | . . . . . Total Damage . | . . . . . Kills . | . . . . . Allies Corrupted . | . . . . . Allies Melted . | . . . . . Intel | -11 -10 -10 -10 -9 ------- Run | Scr Mat Min Exi Min Robot Analysis Total . | . . . . . Derelict Logs Recovered . | . . . . . Drone Launches . | . . . . . Drone Recoveries . | . . . . . Exploration | -11 -10 -10 -10 -9 ------------- Run | Scr Mat Min Exi Min Turns Passed 1676 | . 439 523 376 338 Spaces Moved 993 | 1 177 292 262 261 Core . | . . . . . Treads 249 | . 63 186 . . Legs 744 | 1 114 106 262 261 Wheels . | . . . . . Hover . | . . . . . Flight . | . . . . . Fastest Speed 120 | 120 120 150 120 120 Average Speed 140 | 120 152 156 136 120 Slowest Speed 180 | 120 180 160 150 120 Overloaded Moves . | . . . . . Propulsion Burnouts . | . . . . . Robots Hopped . | . . . . . Cave-ins Triggered . | . . . . . Time Travels 1 | . . . 1 . Exploration Rate (%) 46 | 2 34 86 60 51 Regions Visited 4 Branch Regions 3 Pre-discovered Areas 2 | . 2 . . . Known Exits Taken 1 | . 1 . . . Unknown Exits Taken 3 | 1 . 1 1 . Scrap Searched 1 | . . 1 . . Spaces Dug 15 | . . . . 15 Terrain Destroyed 71 | . 36 . . 35 Melee . | . . . . . Projectile . | . . . . . AOE 71 | . 36 . . 35 Terrain Rammed . | . . . . . Walls Destroyed . | . . . . . Machines Disabled . | . . . . . Actions | -11 -10 -10 -10 -9 --------- Run | Scr Mat Min Exi Min Total 1151 | . 261 329 281 280 Wait 43 | . 26 5 . 12 Move 989 | . 176 291 261 261 Hop . | . . . . . Pick Up 26 | . 6 4 15 1 Fast Attach 2 | . 1 . 1 . Attach 8 | . 3 5 . . Detach . | . . . . . Swap 2 | . . . . 2 Drop 6 | . 1 1 4 . Fire 74 | . 47 23 . 4 Melee . | . . . . . Ram . | . . . . . Kick 1 | . 1 . . . Crush . | . . . . . Escape Stasis . | . . . . . Rewire . | . . . . . Trap . | . . . . . Miscellaneous . | . . . . . Route ------- -11/Scrapyard -10/Materials (discovered 2 exits: *Min x2) -10/Mines (discovered 2 exits: [*Mat] / *Exi) -10/Exiles -9/Mines History --------- Turn | Location | Event 1 | -11/Scrapyard | Discovered new exit (range 0) 1 | -11/Scrapyard | Entered Materials 110 | -10/Materials | Identified exit to Mines 330 | -10/Materials | Build established: Mutant 397 | -10/Materials | Core integrity fell below 50% 440 | -10/Materials | Entered Mines 452 | -10/Mines | Met a Derelict bent on vengeance 456 | -10/Mines | Discovered new exit (range 14) 558 | -10/Mines | Core integrity fell below 20% 722 | -10/Mines | Received a Rocket Launcher from a helpful Derelict 955 | -10/Mines | Deemed a non-threat by the Exiles lab entrance 957 | -10/Mines | Discovered new exit (range 5) 963 | -10/Mines | Entered Exiles 999 | -10/Exiles | Met 8R-AWN 1070 | -10/Exiles | Met EX-HEX 1106 | -10/Exiles | Build established: Scavenger-Mutant 1110 | -10/Exiles | Met EX-BIN 1128 | -10/Exiles | Aligned with FarCom system 1130 | -10/Exiles | Given EX-Vault access code 1167 | -10/Exiles | Opened EX-Vault 1183 | -10/Exiles | Found Chronowheel 1184 | -10/Exiles | Activated Chronowheel 1184 | -10/Exiles | Spacetime reconverged on an earlier point 1190 | -10/Exiles | Found Lightpack 2.0 1220 | -10/Exiles | Found Trap Reconfigurator 1246 | -10/Exiles | Warned to stay clear of 0b10 Research branches 1281 | -10/Exiles | Met EX-DEC 1321 | -10/Exiles | Discovered new exit (range 14) 1339 | -10/Exiles | Stole two prototypes: Lightpack 2.0, Trap Reconfigurator 1339 | -10/Exiles | Entered Mines 1422 | -9/Mines | YI-UF0 nonchalantly dropped a Grenade Launcher on the ground 1466 | -9/Mines | Build established: Hauler-Mutant 1536 | -9/Mines | Assembled infested the area 1677 | -9/Mines | Destroyed by as-72589 with Assembled Maul Last Messages --------------- 01345_ S-10 Pest destroyed. 01349_ Acquired 74 matter. 01351_ Acquired 10 matter. 01357_ The unstable cave ceiling collapses. 01422_ YI-UF0 nonchalantly drops a Grenade Launcher on the ground. 01425_ Acquired Grenade Launcher. 01536_ ALERT: Infestation in the mines, dispatching Demolisher response squad. 01562_ K-01 Serf collects debris. 01585_ T-07 Excavator is excavating. 01600_ K-01 Serf collects debris. 01645_ K-01 Serf destroyed. 01659_ YI-UF0: "BOOM!" 01659_ as-31443 destroyed. 01663_ YI-UF0: "BADABOOM!" 01663_ as-67360 destroyed. 01664_ The unstable cave ceiling collapses. 01669_ YI-UF0 mumbles something. 01671_ The unstable cave ceiling collapses. 01677_ YI-UF0 mumbles something. Map ----- +----------------------------------------------------+ | ?????????????????????????????????????????????????? | | ?????????????????????????????????????????????????? | | ?????????????????????????????????????????????????? | | ?????????????????????????????????????????????????? | | ????????????????????###??????????????????????????? | | ????????????????????# ??????????????????????????? | | ????????????????????# #??????????????????????????? | | ????????????????????# #??????????????????????????? | | ????????????????????# #??????????????????????????? | | ?????????????????#### #??????????????????????????? | | ?????????????????# #??????????????????########? | | ?????????????????# ####??????????????????# #? | | ???????????####### #?????????????????????# ### #? | | ???????????# #?????????????????????# #?# ## | | ???????????# #######?????????????######### ### | | ?????????### #?????????????????# % ## ## | | ????????## ##??????????????????######### ## #? | | ????????# !##????????????????????????## ## #? | | ????????# [%##?????????????####??????# ! ## #? | | ????????# * ##???????????### ####???# ## ## | | ????????## ##??????????# ##?## ## | | ?????????## #?????????### ### % ### | | ??????????# ########### ##?#### | | ??????????# # # ###????## | | ###???????# ###?????## | | # #?????## @a g ##???##### | | ###### ##???## | | # =%= ##????# | | ! #?????# | | ! ####### ### [ ## #????## | | # #### ##????### #?## #### #?????### | | ######??## #????## ##?#####??### #???????## | | ?????????# ##???# ####????????##????????# | | ?????????# #???# ##?????????????????## # | | ###?????## #???## #??????????????????##? | | # ###### #????#### #????????????????????? | | ##???????## #??????????????????### | | #?????????# #??????????????????# | | #?????????# #?????????????????## | | ##?????????## ##?????????????????# | | # ##???????????# #??????????????????## | | # ##????????????# #??????????????????# | | # ##?????????# ### #??????????????????## | | ## #####??????????# #??????????????????# | | ?# ##??????????????## #####?????????????????# | | ## ##????????????????##??????????????????????# | | # #?????????????????????????????????????????# | | # #?????????????????????????????????????????# | | ####?????????????????????????????????????????# | | ?????????????????????????????????????????????## ## | +----------------------------------------------------+ Best States ------------- Heat Dissipation 25 Energy Generation 10 Energy Capacity 250 Matter Stores 300 Matter Capacity 300 Sight Range 16 Terrain Scan Density 10 Evasion (%) 40 Recoil Reduction 2 Item Schematics ----------------- None Robot Schematics ------------------ None Fabricated ------------ Nothing Alien Tech Used ----------------- None Achievements -------------- None Challenges ------------ None Game ------ Seed MyomerPotentialKatana Manual? 0 Play Time 00:11:33 Cumulative 84.1 hours Start 2020.10.15 @ 20:24:51 End 2020.10.15 @ 20:35:19 Sessions 1 Manual Loads 0 Difficulty Rogue Special Mode None Game No. 82 Rogue 81 Adventurer 0 Explorer 1 Win Type - Total 0 Types 0/0/0/0/0/0/0/0/0 Lore% 50 Gallery% 78 Achievement% 59 Wizard Run 0 Options --------- ASCII 0 Keyboard 0 Movement Mouse Keybinds 0 Fullscreen 1 Font 18/SmallcapsGlow Map View 76x50 Tactical HUD 1 Map Filters NONE Filters NONE Steam 1 RUN: 0ba62727-4136-4801-9032-c00fe2457cc0